[Event "January 2 Early 2024"]
[Site "https://www.chess.com"]
[Date "2024.01.02"]
[Round "1"]
[White "Babayeva, Nasrin"]
[Black "Kilpatrick, Callum"]
[Result "0-1"]
[Board "300"]
[TimeControl "180+1"]
[WhiteFideId "13416626"]
[BlackFideId "414425"]
[WhiteElo "1799"]
[BlackElo "2536"]
[WhiteTeam "AZE"]
[BlackTeam "ENG"]
[WhiteClock "0:00:30"]
[BlackClock "0:00:17"]

1. d4 {[%clk 0:02:59]}  Nf6 {[%clk 0:02:57]} 2. c4 {[%clk 0:02:55]}  e6 {[%clk 0:02:54]} 3. e3 {[%clk 0:02:52]}  Bb4+ {[%clk 0:02:45]} 4. Nc3 {[%clk 0:02:46]}  O-O {[%clk 0:02:44]} 5. Nf3 {[%clk 0:02:46]}  d5 {[%clk 0:02:44]} 6. Bd3 {[%clk 0:02:37]}  dxc4 {[%clk 0:02:44]} 7. Bxc4 {[%clk 0:02:38]}  c5 {[%clk 0:02:44]} 8. O-O {[%clk 0:02:38]}  Nc6 {[%clk 0:02:44]} 9. a3 {[%clk 0:02:35]}  Bxc3 {[%clk 0:02:44]} 10. bxc3 {[%clk 0:02:36]}  Na5 {[%clk 0:02:44]} 11. Ba2 {[%clk 0:02:35]}  Qc7 {[%clk 0:02:42]} 12. Ne5 {[%clk 0:02:31]}  b6 {[%clk 0:02:40]} 13. a4 {[%clk 0:02:22]}  Bb7 {[%clk 0:02:39]} 14. Ba3 {[%clk 0:02:21]}  Rfd8 {[%clk 0:02:39]} 15. Qc2 {[%clk 0:02:18]}  Be4 {[%clk 0:02:36]} 16. Qe2 {[%clk 0:02:17]}  Rac8 {[%clk 0:02:31]} 17. Rfd1 {[%clk 0:02:10]}  h6 {[%clk 0:02:28]} 18. Rac1 {[%clk 0:02:09]}  Bb7 {[%clk 0:02:19]} 19. f3 {[%clk 0:02:06]}  Nc6 {[%clk 0:02:11]} 20. Nxc6 {[%clk 0:01:56]}  Qxc6 {[%clk 0:02:12]} 21. Qb5 {[%clk 0:01:40]}  Qc7 {[%clk 0:02:01]} 22. dxc5 {[%clk 0:01:32]}  Rxd1+ {[%clk 0:01:56]} 23. Rxd1 {[%clk 0:01:33]}  bxc5 {[%clk 0:01:56]} 24. e4 {[%clk 0:01:28]}  Bc6 {[%clk 0:01:34]} 25. Qxc5 {[%clk 0:01:22]}  Bxa4 {[%clk 0:01:35]} 26. Qxc7 {[%clk 0:01:21]}  Rxc7 {[%clk 0:01:36]} 27. Rd8+ {[%clk 0:01:20]}  Kh7 {[%clk 0:01:36]} 28. Bb4 {[%clk 0:01:09]}  Nd7 {[%clk 0:01:27]} 29. Bb1 {[%clk 0:01:00]}  e5 {[%clk 0:01:04]} 30. Ba2 {[%clk 0:00:56]}  Kg6 {[%clk 0:01:03]} 31. Kf2 {[%clk 0:00:52]}  Bb5 {[%clk 0:01:02]} 32. Ke3 {[%clk 0:00:51]}  Nb6 {[%clk 0:00:52]} 33. Bd6 {[%clk 0:00:44]}  Rxc3+ {[%clk 0:00:51]} 34. Kd2 {[%clk 0:00:44]}  Rd3+ {[%clk 0:00:44]} 35. Kc2 {[%clk 0:00:43]}  f6 {[%clk 0:00:36]} 36. Bc7 {[%clk 0:00:31]}  Rxd8 {[%clk 0:00:34]} 37. Bxd8 {[%clk 0:00:32]}  Be8 {[%clk 0:00:25]} 38. Bxb6 {[%clk 0:00:32]}  axb6 {[%clk 0:00:25]} 39. Bd5 {[%clk 0:00:31]}  Bb5 {[%clk 0:00:25]} 40. Kb3 {[%clk 0:00:26]}  Kg5 {[%clk 0:00:23]} 41. g3 {[%clk 0:00:21]}  Be2 {[%clk 0:00:21]} 42. h4+ {[%clk 0:00:20]}  Kh5 {[%clk 0:00:10]} 43. Bf7+ {[%clk 0:00:20]}  g6 {[%clk 0:00:11]} 44. g4+ {[%clk 0:00:18]}  Kxh4 {[%clk 0:00:12]} 45. Bxg6 {[%clk 0:00:18]}  Bxf3 {[%clk 0:00:12]} 46. Bf5 {[%clk 0:00:18]}  Kg5 {[%clk 0:00:12]} 47. Kb4 {[%clk 0:00:18]}  Bxg4 {[%clk 0:00:11]} 48. Bxg4 {[%clk 0:00:18]}  Kxg4 {[%clk 0:00:11]} 49. Kb5 {[%clk 0:00:19]}  Kf4 {[%clk 0:00:12]} 50. Kxb6 {[%clk 0:00:20]}  Kxe4 {[%clk 0:00:12]} 51. Kc6 {[%clk 0:00:20]}  f5 {[%clk 0:00:13]} 52. Kd6 {[%clk 0:00:21]}  f4 {[%clk 0:00:14]} 53. Ke6 {[%clk 0:00:21]}  h5 {[%clk 0:00:15]} 54. Kf6 {[%clk 0:00:22]}  h4 {[%clk 0:00:16]} 55. Kg5 {[%clk 0:00:23]}  h3 {[%clk 0:00:16]} 56. Kh4 {[%clk 0:00:24]}  h2 {[%clk 0:00:17]} 57. Kg4 {[%clk 0:00:24]}  h1=Q {[%clk 0:00:17]} 58. Kg5 {[%clk 0:00:24]}  f3 {[%clk 0:00:17]} 59. Kg4 {[%clk 0:00:24]}  f2 {[%clk 0:00:17]} 60. Kg5 {[%clk 0:00:25]}  f1=Q {[%clk 0:00:17]} 61. Kg4 {[%clk 0:00:26]}  Kd3 {[%clk 0:00:16]} 62. Kg5 {[%clk 0:00:27]}  e4 {[%clk 0:00:16]} 63. Kg6 {[%clk 0:00:28]}  e3 {[%clk 0:00:16]} 64. Kg7 {[%clk 0:00:28]}  e2 {[%clk 0:00:16]} 65. Kg6 {[%clk 0:00:29]}  e1=Q {[%clk 0:00:17]} 66. Kg5 {[%clk 0:00:30]}  Qg3# {[%clk 0:00:17]} 0-1

[Event "January 2 Early 2024"]
[Site "https://www.chess.com"]
[Date "2024.01.02"]
[Round "1"]
[White "Martinez Reyes, Pedro Ramon"]
[Black "Yagnyatinskiy, Maxim"]
[Result "1-0"]
[Board "301"]
[TimeControl "180+1"]
[WhiteFideId "3901807"]
[BlackFideId "6508588"]
[WhiteElo "2534"]
[BlackElo "1631"]
[WhiteTeam "VEN"]
[BlackTeam "CRC"]
[WhiteClock "0:01:07"]
[BlackClock "0:00:13"]

1. Nf3 {[%clk 0:02:55]}  c5 {[%clk 0:02:59]} 2. d3 {[%clk 0:02:53]}  Nc6 {[%clk 0:02:58]} 3. g3 {[%clk 0:02:53]}  g6 {[%clk 0:02:58]} 4. Bg2 {[%clk 0:02:53]}  Bg7 {[%clk 0:02:58]} 5. O-O {[%clk 0:02:53]}  Nf6 {[%clk 0:02:58]} 6. e4 {[%clk 0:02:54]}  d6 {[%clk 0:02:58]} 7. Re1 {[%clk 0:02:51]}  O-O {[%clk 0:02:58]} 8. c3 {[%clk 0:02:51]}  Bg4 {[%clk 0:02:57]} 9. Nbd2 {[%clk 0:02:46]}  Ne5 {[%clk 0:02:56]} 10. h3 {[%clk 0:02:43]}  Nxd3 {[%clk 0:02:41]} 11. hxg4 {[%clk 0:02:39]}  Nxe1 {[%clk 0:02:41]} 12. Nxe1 {[%clk 0:02:39]}  Qd7 {[%clk 0:02:38]} 13. g5 {[%clk 0:02:39]}  Ng4 {[%clk 0:02:35]} 14. Qe2 {[%clk 0:02:08]}  Ne5 {[%clk 0:02:22]} 15. f4 {[%clk 0:02:04]}  Qg4 {[%clk 0:02:13]} 16. Qf2 {[%clk 0:01:57]}  Nc6 {[%clk 0:01:58]} 17. Nf1 {[%clk 0:01:57]}  f6 {[%clk 0:01:22]} 18. Ne3 {[%clk 0:01:45]}  Qd7 {[%clk 0:01:14]} 19. gxf6 {[%clk 0:01:46]}  Rxf6 {[%clk 0:01:13]} 20. Nd5 {[%clk 0:01:45]}  Rff8 {[%clk 0:01:11]} 21. Kh2 {[%clk 0:01:43]}  e6 {[%clk 0:01:09]} 22. Bh3 {[%clk 0:01:42]}  Rac8 {[%clk 0:00:48]} 23. Nf3 {[%clk 0:01:36]}  Qe8 {[%clk 0:00:47]} 24. Ne3 {[%clk 0:01:34]}  Rc7 {[%clk 0:00:40]} 25. Ng5 {[%clk 0:01:29]}  Re7 {[%clk 0:00:36]} 26. Bd2 {[%clk 0:01:24]}  h6 {[%clk 0:00:35]} 27. Nf3 {[%clk 0:01:24]}  e5 {[%clk 0:00:31]} 28. Nd5 {[%clk 0:01:23]}  Ref7 {[%clk 0:00:26]} 29. Re1 {[%clk 0:01:22]}  exf4 {[%clk 0:00:21]} 30. gxf4 {[%clk 0:01:23]}  g5 {[%clk 0:00:20]} 31. Bf5 {[%clk 0:01:13]}  gxf4 {[%clk 0:00:18]} 32. Bxf4 {[%clk 0:01:13]}  Ne5 {[%clk 0:00:18]} 33. Nxe5 {[%clk 0:01:13]}  dxe5 {[%clk 0:00:15]} 34. Be3 {[%clk 0:01:11]}  Qd8 {[%clk 0:00:15]} 35. Qg3 {[%clk 0:01:10]}  Kh8 {[%clk 0:00:15]} 36. Qg6 {[%clk 0:01:09]}  Bf6 {[%clk 0:00:14]} 37. Bxh6 {[%clk 0:01:08]}  Rh7 {[%clk 0:00:13]} 38. Qxh7# {[%clk 0:01:07]} 1-0

[Event "January 2 Early 2024"]
[Site "https://www.chess.com"]
[Date "2024.01.02"]
[Round "1"]
[White "Gulamirian, Korun"]
[Black "Tifferet, Shakked"]
[Result "0-1"]
[Board "302"]
[TimeControl "180+1"]
[WhiteFideId "4144899"]
[BlackFideId "2811529"]
[WhiteElo "1558"]
[BlackElo "2534"]
[WhiteTeam "RUS"]
[BlackTeam "ISR"]
[WhiteClock "0:00:00"]
[BlackClock "0:02:09"]

1. e4 {[%clk 0:02:45]}  c5 {[%clk 0:02:57]} 2. Nf3 {[%clk 0:02:42]}  d6 {[%clk 0:02:56]} 3. d4 {[%clk 0:02:42]}  cxd4 {[%clk 0:02:57]} 4. Nxd4 {[%clk 0:02:42]}  Nf6 {[%clk 0:02:58]} 5. Nc3 {[%clk 0:02:41]}  e5 {[%clk 0:02:58]} 6. Nb3 {[%clk 0:02:37]}  Be6 {[%clk 0:02:57]} 7. Be3 {[%clk 0:02:37]}  Be7 {[%clk 0:02:56]} 8. f3 {[%clk 0:02:37]}  O-O {[%clk 0:02:55]} 9. Qd2 {[%clk 0:02:36]}  a5 {[%clk 0:02:55]} 10. a3 {[%clk 0:02:35]}  a4 {[%clk 0:02:53]} 11. Nc1 {[%clk 0:02:23]}  d5 {[%clk 0:02:53]} 12. exd5 {[%clk 0:02:22]}  Nxd5 {[%clk 0:02:53]} 13. Nxd5 {[%clk 0:02:20]}  Bxd5 {[%clk 0:02:48]} 14. Bd3 {[%clk 0:02:15]}  f5 {[%clk 0:02:47]} 15. O-O {[%clk 0:02:11]}  Nc6 {[%clk 0:02:45]} 16. c3 {[%clk 0:02:04]}  e4 {[%clk 0:02:43]} 17. fxe4 {[%clk 0:02:02]}  fxe4 {[%clk 0:02:44]} 18. Bb5 {[%clk 0:01:56]}  Rxf1+ {[%clk 0:02:41]} 19. Bxf1 {[%clk 0:01:54]}  Na5 {[%clk 0:02:30]} 20. Qd4 {[%clk 0:01:42]}  Bf6 {[%clk 0:02:21]} 21. Qb6 {[%clk 0:01:32]}  Nc4 {[%clk 0:02:15]} 22. Bxc4 {[%clk 0:01:22]}  Bxc4 {[%clk 0:02:16]} 23. Qxd8+ {[%clk 0:00:45]}  Rxd8 {[%clk 0:02:17]} 24. Na2 {[%clk 0:00:35]}  Bxa2 {[%clk 0:02:12]} 25. Rxa2 {[%clk 0:00:35]}  Rd1+ {[%clk 0:02:13]} 26. Kf2 {[%clk 0:00:35]}  Rb1 {[%clk 0:02:13]} 27. g3 {[%clk 0:00:31]}  Kf7 {[%clk 0:02:12]} 28. h4 {[%clk 0:00:31]}  Ke6 {[%clk 0:02:12]} 29. Bd4 {[%clk 0:00:16]}  Bxd4+ {[%clk 0:02:08]} 30. cxd4 {[%clk 0:00:16]}  Kd5 {[%clk 0:02:09]} 31. Ke3 {[%clk 0:00:00]}  Kc4 {[%clk 0:02:09]} 0-1

[Event "January 2 Early 2024"]
[Site "https://www.chess.com"]
[Date "2024.01.02"]
[Round "2"]
[White "Gullaksen, Eirik"]
[Black "Carlsen, Magnus"]
[Result "0-1"]
[Board "1"]
[TimeControl "180+1"]
[WhiteFideId "1500945"]
[BlackFideId "1503014"]
[WhiteElo "2676"]
[BlackElo "3366"]
[WhiteTeam "NOR"]
[BlackTeam "NOR"]
[WhiteClock "0:01:36"]
[BlackClock "0:02:09"]

1. e4 {[%clk 0:02:59]}  a6 {[%clk 0:02:56]} 2. d4 {[%clk 0:02:58]}  h6 {[%clk 0:02:56]} 3. Nc3 {[%clk 0:02:58]}  b5 {[%clk 0:02:55]} 4. Bd3 {[%clk 0:02:58]}  e6 {[%clk 0:02:54]} 5. Be3 {[%clk 0:02:56]}  Bb7 {[%clk 0:02:52]} 6. f4 {[%clk 0:02:55]}  c5 {[%clk 0:02:52]} 7. dxc5 {[%clk 0:02:53]}  Qc7 {[%clk 0:02:51]} 8. Nf3 {[%clk 0:02:53]}  Bxc5 {[%clk 0:02:50]} 9. Qe2 {[%clk 0:02:51]}  Bxe3 {[%clk 0:02:47]} 10. Qxe3 {[%clk 0:02:51]}  Nf6 {[%clk 0:02:47]} 11. a3 {[%clk 0:02:46]}  Nc6 {[%clk 0:02:45]} 12. O-O {[%clk 0:02:45]}  d6 {[%clk 0:02:41]} 13. Rae1 {[%clk 0:02:44]}  Ne7 {[%clk 0:02:38]} 14. Kh1 {[%clk 0:02:43]}  O-O {[%clk 0:02:36]} 15. Qf2 {[%clk 0:02:35]}  Ng6 {[%clk 0:02:26]} 16. Qg3 {[%clk 0:02:35]}  Nh5 {[%clk 0:02:25]} 17. Qg4 {[%clk 0:02:34]}  Nhxf4 {[%clk 0:02:24]} 18. Ne2 {[%clk 0:02:23]}  Nxd3 {[%clk 0:02:19]} 19. cxd3 {[%clk 0:02:24]}  d5 {[%clk 0:02:15]} 20. Ng3 {[%clk 0:02:23]}  dxe4 {[%clk 0:02:15]} 21. dxe4 {[%clk 0:02:24]}  Qf4 {[%clk 0:02:14]} 22. Qxf4 {[%clk 0:02:19]}  Nxf4 {[%clk 0:02:14]} 23. Ne5 {[%clk 0:02:20]}  g5 {[%clk 0:02:14]} 24. Rd1 {[%clk 0:02:14]}  Rfd8 {[%clk 0:02:12]} 25. Nd7 {[%clk 0:02:14]}  Kg7 {[%clk 0:02:10]} 26. Rf2 {[%clk 0:02:13]}  Bc6 {[%clk 0:02:08]} 27. Rfd2 {[%clk 0:02:12]}  Rxd7 {[%clk 0:02:09]} 28. Rxd7 {[%clk 0:02:13]}  Bxd7 {[%clk 0:02:10]} 29. Rxd7 {[%clk 0:02:13]}  Rc8 {[%clk 0:02:10]} 30. h3 {[%clk 0:02:07]}  Rc1+ {[%clk 0:02:09]} 31. Kh2 {[%clk 0:02:07]}  Rc2 {[%clk 0:02:10]} 32. Nf1 {[%clk 0:01:51]}  Rxg2+ {[%clk 0:02:10]} 33. Kh1 {[%clk 0:01:52]}  Rxb2 {[%clk 0:02:10]} 34. Ra7 {[%clk 0:01:51]}  Rb1 {[%clk 0:02:09]} 35. Kg1 {[%clk 0:01:50]}  Nxh3+ {[%clk 0:02:09]} 36. Kg2 {[%clk 0:01:50]}  Nf4+ {[%clk 0:02:10]} 37. Kf2 {[%clk 0:01:51]}  Rb2+ {[%clk 0:02:10]} 38. Kf3 {[%clk 0:01:50]}  Rb3+ {[%clk 0:02:10]} 39. Kg4 {[%clk 0:01:36]}  Kg6 {[%clk 0:02:09]} 0-1

[Event "January 2 Early 2024"]
[Site "https://www.chess.com"]
[Date "2024.01.02"]
[Round "2"]
[White "Nakamura, Hikaru"]
[Black "Weetik, Vjacheslav"]
[Result "1-0"]
[Board "2"]
[TimeControl "180+1"]
[WhiteFideId "2016192"]
[BlackFideId "4153472"]
[WhiteElo "3238"]
[BlackElo "2676"]
[WhiteTeam "USA"]
[BlackTeam "RUS"]
[WhiteClock "0:00:15"]
[BlackClock "0:00:01"]

1. g3 {[%clk 0:03:00]}  e5 {[%clk 0:02:59]} 2. c4 {[%clk 0:02:57]}  Nf6 {[%clk 0:02:54]} 3. Bg2 {[%clk 0:02:57]}  d5 {[%clk 0:02:49]} 4. cxd5 {[%clk 0:02:58]}  Nxd5 {[%clk 0:02:49]} 5. Nc3 {[%clk 0:02:59]}  Nb6 {[%clk 0:02:49]} 6. e3 {[%clk 0:02:56]}  Nc6 {[%clk 0:02:48]} 7. Nge2 {[%clk 0:02:53]}  Be7 {[%clk 0:02:46]} 8. O-O {[%clk 0:02:50]}  O-O {[%clk 0:02:46]} 9. f4 {[%clk 0:02:46]}  Qd3 {[%clk 0:02:32]} 10. Be4 {[%clk 0:02:38]}  Qd6 {[%clk 0:02:26]} 11. f5 {[%clk 0:02:34]}  Nd7 {[%clk 0:02:12]} 12. g4 {[%clk 0:02:23]}  Nf6 {[%clk 0:02:06]} 13. Bf3 {[%clk 0:02:09]}  h6 {[%clk 0:01:50]} 14. a3 {[%clk 0:02:05]}  Rd8 {[%clk 0:01:40]} 15. Ng3 {[%clk 0:02:04]}  Qd3 {[%clk 0:01:34]} 16. Be2 {[%clk 0:01:39]}  Qd7 {[%clk 0:01:24]} 17. Bf3 {[%clk 0:01:38]}  b6 {[%clk 0:01:17]} 18. b4 {[%clk 0:01:37]}  Bb7 {[%clk 0:01:12]} 19. Rf2 {[%clk 0:01:37]}  Rab8 {[%clk 0:01:06]} 20. h4 {[%clk 0:01:33]}  e4 {[%clk 0:01:05]} 21. Be2 {[%clk 0:00:54]}  Nh7 {[%clk 0:00:41]} 22. Ngxe4 {[%clk 0:00:54]}  Bxh4 {[%clk 0:00:40]} 23. Rh2 {[%clk 0:00:54]}  Be7 {[%clk 0:00:38]} 24. d4 {[%clk 0:00:54]}  Ng5 {[%clk 0:00:33]} 25. Nxg5 {[%clk 0:00:49]}  Bxg5 {[%clk 0:00:32]} 26. Bf3 {[%clk 0:00:50]}  Qe7 {[%clk 0:00:25]} 27. Ne4 {[%clk 0:00:47]}  Ne5 {[%clk 0:00:24]} 28. Bg2 {[%clk 0:00:27]}  Nc4 {[%clk 0:00:20]} 29. Nxg5 {[%clk 0:00:20]}  Qxg5 {[%clk 0:00:20]} 30. Qe2 {[%clk 0:00:15]}  Bxg2 {[%clk 0:00:17]} 31. Rxg2 {[%clk 0:00:16]}  b5 {[%clk 0:00:15]} 32. e4 {[%clk 0:00:16]}  Qf6 {[%clk 0:00:15]} 33. e5 {[%clk 0:00:17]}  Qc6 {[%clk 0:00:16]} 34. g5 {[%clk 0:00:17]}  Qd5 {[%clk 0:00:15]} 35. Be3 {[%clk 0:00:16]}  Nxe3 {[%clk 0:00:14]} 36. Qxe3 {[%clk 0:00:17]}  Qxd4 {[%clk 0:00:15]} 37. Qxd4 {[%clk 0:00:17]}  Rxd4 {[%clk 0:00:15]} 38. gxh6 {[%clk 0:00:18]}  g6 {[%clk 0:00:13]} 39. e6 {[%clk 0:00:15]}  Kh7 {[%clk 0:00:10]} 40. exf7 {[%clk 0:00:16]}  gxf5 {[%clk 0:00:10]} 41. Rf1 {[%clk 0:00:15]}  Rf8 {[%clk 0:00:09]} 42. Rxf5 {[%clk 0:00:16]}  Rd7 {[%clk 0:00:07]} 43. Rgf2 {[%clk 0:00:14]}  Kxh6 {[%clk 0:00:07]} 44. R5f3 {[%clk 0:00:14]}  Kg6 {[%clk 0:00:01]} 45. Rg3+ {[%clk 0:00:15]} 1-0

[Event "January 2 Early 2024"]
[Site "https://www.chess.com"]
[Date "2024.01.02"]
[Round "2"]
[White "Vachier-Lagrave, Maxime"]
[Black "Hamitevici, Vladimir"]
[Result "1-0"]
[Board "3"]
[TimeControl "180+1"]
[WhiteFideId "623539"]
[BlackFideId "13902393"]
[WhiteElo "3188"]
[BlackElo "2675"]
[WhiteTeam "FRA"]
[BlackTeam "MDA"]
[WhiteClock "0:01:11"]
[BlackClock "0:00:05"]

1. e4 {[%clk 0:03:00]}  g6 {[%clk 0:02:55]} 2. d4 {[%clk 0:03:00]}  d6 {[%clk 0:02:56]} 3. Nc3 {[%clk 0:03:00]}  c6 {[%clk 0:02:56]} 4. a4 {[%clk 0:02:59]}  a5 {[%clk 0:02:55]} 5. Bc4 {[%clk 0:02:59]}  Nf6 {[%clk 0:02:51]} 6. Qe2 {[%clk 0:02:54]}  d5 {[%clk 0:02:47]} 7. exd5 {[%clk 0:02:53]}  cxd5 {[%clk 0:02:47]} 8. Bb5+ {[%clk 0:02:54]}  Nc6 {[%clk 0:02:45]} 9. h3 {[%clk 0:02:53]}  Bg7 {[%clk 0:02:43]} 10. Nf3 {[%clk 0:02:54]}  O-O {[%clk 0:02:41]} 11. O-O {[%clk 0:02:54]}  Bf5 {[%clk 0:02:37]} 12. Rd1 {[%clk 0:02:48]}  Nb4 {[%clk 0:02:32]} 13. Ne1 {[%clk 0:02:48]}  Rc8 {[%clk 0:02:30]} 14. Bf4 {[%clk 0:02:47]}  Ne8 {[%clk 0:02:14]} 15. g4 {[%clk 0:02:37]}  Bd7 {[%clk 0:02:05]} 16. Bxd7 {[%clk 0:02:29]}  Qxd7 {[%clk 0:02:04]} 17. Nb5 {[%clk 0:02:30]}  Nf6 {[%clk 0:01:41]} 18. c3 {[%clk 0:02:29]}  Nc6 {[%clk 0:01:41]} 19. Nd3 {[%clk 0:02:29]}  b6 {[%clk 0:01:34]} 20. Rf1 {[%clk 0:02:27]}  Rfe8 {[%clk 0:01:26]} 21. Rae1 {[%clk 0:02:27]}  Ne4 {[%clk 0:01:10]} 22. f3 {[%clk 0:02:25]}  Nf6 {[%clk 0:01:10]} 23. Qh2 {[%clk 0:02:22]}  Na7 {[%clk 0:00:50]} 24. Ne5 {[%clk 0:02:19]}  Qb7 {[%clk 0:00:50]} 25. Nxa7 {[%clk 0:02:18]}  Qxa7 {[%clk 0:00:51]} 26. Qe2 {[%clk 0:02:15]}  Nd7 {[%clk 0:00:46]} 27. Qb5 {[%clk 0:02:15]}  Bxe5 {[%clk 0:00:36]} 28. Bxe5 {[%clk 0:02:16]}  Qb7 {[%clk 0:00:31]} 29. Re3 {[%clk 0:02:12]}  Qc6 {[%clk 0:00:31]} 30. Qxc6 {[%clk 0:02:10]}  Rxc6 {[%clk 0:00:32]} 31. Bg3 {[%clk 0:02:08]}  f6 {[%clk 0:00:28]} 32. f4 {[%clk 0:02:06]}  Kf7 {[%clk 0:00:27]} 33. Ra1 {[%clk 0:02:06]}  h5 {[%clk 0:00:26]} 34. Kg2 {[%clk 0:02:06]}  Rh8 {[%clk 0:00:25]} 35. Re2 {[%clk 0:02:00]}  Re6 {[%clk 0:00:23]} 36. Rxe6 {[%clk 0:01:58]}  Kxe6 {[%clk 0:00:24]} 37. Kf3 {[%clk 0:01:55]}  hxg4+ {[%clk 0:00:22]} 38. hxg4 {[%clk 0:01:56]}  f5 {[%clk 0:00:23]} 39. g5 {[%clk 0:01:53]}  Kd6 {[%clk 0:00:23]} 40. b3 {[%clk 0:01:50]}  Nb8 {[%clk 0:00:20]} 41. Kg2 {[%clk 0:01:44]}  Nc6 {[%clk 0:00:19]} 42. Bf2 {[%clk 0:01:45]}  Kd7 {[%clk 0:00:15]} 43. Rb1 {[%clk 0:01:43]}  e6 {[%clk 0:00:14]} 44. b4 {[%clk 0:01:34]}  axb4 {[%clk 0:00:14]} 45. cxb4 {[%clk 0:01:35]}  Ra8 {[%clk 0:00:14]} 46. b5 {[%clk 0:01:35]}  Ne7 {[%clk 0:00:13]} 47. Ra1 {[%clk 0:01:35]}  Nc8 {[%clk 0:00:13]} 48. Be1 {[%clk 0:01:34]}  Nd6 {[%clk 0:00:13]} 49. Bc3 {[%clk 0:01:30]}  Rc8 {[%clk 0:00:13]} 50. Bb4 {[%clk 0:01:23]}  Rc4 {[%clk 0:00:09]} 51. Bxd6 {[%clk 0:01:23]}  Kxd6 {[%clk 0:00:10]} 52. a5 {[%clk 0:01:24]}  bxa5 {[%clk 0:00:10]} 53. Rxa5 {[%clk 0:01:24]}  Rxd4 {[%clk 0:00:09]} 54. Ra6+ {[%clk 0:01:24]}  Kc5 {[%clk 0:00:08]} 55. Rxe6 {[%clk 0:01:24]}  Rxf4 {[%clk 0:00:06]} 56. b6 {[%clk 0:01:24]}  Rb4 {[%clk 0:00:06]} 57. Rxg6 {[%clk 0:01:24]}  d4 {[%clk 0:00:06]} 58. Kf3 {[%clk 0:01:21]}  Rb3+ {[%clk 0:00:05]} 59. Ke2 {[%clk 0:01:19]}  Kd5 {[%clk 0:00:06]} 60. Kd2 {[%clk 0:01:16]}  Ke4 {[%clk 0:00:06]} 61. Re6+ {[%clk 0:01:16]}  Kd5 {[%clk 0:00:06]} 62. Rh6 {[%clk 0:01:15]}  Ke4 {[%clk 0:00:06]} 63. Kc2 {[%clk 0:01:15]}  Rb5 {[%clk 0:00:06]} 64. g6 {[%clk 0:01:15]}  d3+ {[%clk 0:00:05]} 65. Kc3 {[%clk 0:01:16]}  Rxb6 {[%clk 0:00:05]} 66. g7 {[%clk 0:01:16]}  Rxh6 {[%clk 0:00:05]} 67. g8=Q {[%clk 0:01:16]}  Rc6+ {[%clk 0:00:05]} 68. Kd2 {[%clk 0:01:16]}  Rc2+ {[%clk 0:00:06]} 69. Kd1 {[%clk 0:01:17]}  Re2 {[%clk 0:00:07]} 70. Qc4+ {[%clk 0:01:14]}  Ke3 {[%clk 0:00:07]} 71. Qe6+ {[%clk 0:01:14]}  Kf4 {[%clk 0:00:06]} 72. Qd5 {[%clk 0:01:14]}  Ke3 {[%clk 0:00:04]} 73. Qe5+ {[%clk 0:01:14]}  Kf3 {[%clk 0:00:03]} 74. Qxf5+ {[%clk 0:01:14]}  Ke3 {[%clk 0:00:04]} 75. Qe5+ {[%clk 0:01:14]}  Kf3 {[%clk 0:00:05]} 76. Qd4 {[%clk 0:01:15]}  Re3 {[%clk 0:00:04]} 77. Kd2 {[%clk 0:01:14]}  Re2+ {[%clk 0:00:04]} 78. Kxd3 {[%clk 0:01:14]}  Rf2 {[%clk 0:00:04]} 79. Qe4+ {[%clk 0:01:14]}  Kg3 {[%clk 0:00:04]} 80. Ke3 {[%clk 0:01:15]}  Rg2 {[%clk 0:00:03]} 81. Qf4+ {[%clk 0:01:14]}  Kh3 {[%clk 0:00:03]} 82. Qh6+ {[%clk 0:01:14]}  Kg3 {[%clk 0:00:03]} 83. Qh5 {[%clk 0:01:14]}  Rg1 {[%clk 0:00:03]} 84. Qg5+ {[%clk 0:01:14]}  Kh2 {[%clk 0:00:03]} 85. Qh4+ {[%clk 0:01:14]}  Kg2 {[%clk 0:00:04]} 86. Ke2 {[%clk 0:01:11]}  Rb1 {[%clk 0:00:04]} 87. Qg4+ {[%clk 0:01:10]}  Kh2 {[%clk 0:00:04]} 88. Qh5+ {[%clk 0:01:11]}  Kg1 {[%clk 0:00:05]} 89. Qg6+ {[%clk 0:01:11]}  Kh1 {[%clk 0:00:05]} 90. Qxb1+ {[%clk 0:01:12]}  Kg2 {[%clk 0:00:05]} 91. Qg6+ {[%clk 0:01:11]} 1-0

[Event "January 2 Early 2024"]
[Site "https://www.chess.com"]
[Date "2024.01.02"]
[Round "2"]
[White "Aldokhin, Ivan"]
[Black "Aronian, Levon"]
[Result "1-0"]
[Board "6"]
[TimeControl "180+1"]
[WhiteFideId "24115720"]
[BlackFideId "13300474"]
[WhiteElo "2667"]
[BlackElo "3116"]
[WhiteTeam "RUS"]
[BlackTeam "USA"]
[WhiteClock "0:00:07"]
[BlackClock "0:00:13"]

1. e4 {[%clk 0:03:00]}  c5 {[%clk 0:02:58]} 2. Nf3 {[%clk 0:03:01]}  e6 {[%clk 0:02:58]} 3. d4 {[%clk 0:03:01]}  cxd4 {[%clk 0:02:58]} 4. Nxd4 {[%clk 0:03:02]}  Nc6 {[%clk 0:02:58]} 5. Nc3 {[%clk 0:03:00]}  Qc7 {[%clk 0:02:58]} 6. Nxc6 {[%clk 0:02:58]}  bxc6 {[%clk 0:02:58]} 7. Bd3 {[%clk 0:02:59]}  d5 {[%clk 0:02:57]} 8. Qe2 {[%clk 0:02:57]}  Nf6 {[%clk 0:02:54]} 9. Bg5 {[%clk 0:02:52]}  d4 {[%clk 0:02:45]} 10. Nb1 {[%clk 0:02:39]}  Qa5+ {[%clk 0:02:35]} 11. Bd2 {[%clk 0:02:37]}  Qb6 {[%clk 0:02:35]} 12. Bc1 {[%clk 0:02:28]}  Nd7 {[%clk 0:02:26]} 13. O-O {[%clk 0:02:15]}  Ne5 {[%clk 0:02:26]} 14. f4 {[%clk 0:02:01]}  Nxd3 {[%clk 0:02:26]} 15. cxd3 {[%clk 0:02:02]}  Ba6 {[%clk 0:02:25]} 16. Nd2 {[%clk 0:01:56]}  Be7 {[%clk 0:02:21]} 17. e5 {[%clk 0:01:28]}  c5 {[%clk 0:02:11]} 18. b3 {[%clk 0:01:25]}  Qc6 {[%clk 0:02:05]} 19. Ne4 {[%clk 0:01:21]}  O-O {[%clk 0:02:03]} 20. Rf3 {[%clk 0:00:59]}  Rac8 {[%clk 0:01:43]} 21. Bd2 {[%clk 0:00:58]}  Bb7 {[%clk 0:01:35]} 22. Rh3 {[%clk 0:00:42]}  g6 {[%clk 0:01:13]} 23. Rf1 {[%clk 0:00:22]}  Qa6 {[%clk 0:01:12]} 24. Nf6+ {[%clk 0:00:16]}  Bxf6 {[%clk 0:01:11]} 25. exf6 {[%clk 0:00:16]}  Qxa2 {[%clk 0:01:05]} 26. Qf2 {[%clk 0:00:14]}  Rfd8 {[%clk 0:00:28]} 27. Rxh7 {[%clk 0:00:10]}  Qxd2 {[%clk 0:00:17]} 28. Rg7+ {[%clk 0:00:09]}  Kf8 {[%clk 0:00:17]} 29. Qxd2 {[%clk 0:00:10]}  Rd5 {[%clk 0:00:17]} 30. f5 {[%clk 0:00:07]}  exf5 {[%clk 0:00:13]} 31. Qh6 {[%clk 0:00:07]}  Ke8 {[%clk 0:00:13]} 32. Re1+ {[%clk 0:00:07]}  Kd7 {[%clk 0:00:14]} 33. Rxf7+ {[%clk 0:00:07]}  Kc6 {[%clk 0:00:14]} 34. Re6+ {[%clk 0:00:07]}  Kb5 {[%clk 0:00:13]} 35. Rxb7+ {[%clk 0:00:07]} 1-0